bitfinex-derivatives/quotes_SOLF0:USTF0_20241224
["timestamp","ask_amount","ask_price","bid_price","bid_amount"]
[1735073912157,2.5688,194.79,194.76,3.5]
[1735073914159,8.11119443,194.82,194.76,3.5]
[1735073914360,2.5687,194.79,194.76,3.5]
[1735073914660,8.11119443,194.8,194.73,8.11119443]
[1735073914859,8.11119443,194.8,194.73,11.61119443]
[1735073915960,8.11119443,194.8,194.73,3.5]
[1735073916458,8.11119443,194.78,194.73,3.5]
[1735073916662,8.11119443,194.78,194.71,3.5]
[1735073917350,2.5697,194.72,194.69,3.5]
[1735073917556,2.5697,194.72,194.68,11.61119443]
[1735073920567,8.11119443,194.76,194.68,11.61119443]
[1735073920860,8.11119443,194.74,194.66,11.61119443]
[1735073921263,2.57,194.7,194.66,11.61119443]
[1735073922663,2.5698,194.71,194.68,8.11119443]
[1735073926064,2.5701,194.69,194.68,8.11119443]
[1735073926364,8.11119443,194.76,194.68,8.11119443]
[1735073927660,2.5699,194.7,194.68,8.11119443]
[1735073930765,8.11119443,194.72,194.59,1.6323]
[1735073931063,8.11119443,194.72,194.64,8.11119443]
[1735073931866,2.5704,194.67,194.64,8.11119443]
[1735073932067,8.11119443,194.72,194.64,8.11119443]
[1735073932267,3.0565,194.71,194.64,8.11119443]
[1735073932463,2.5706,194.66,194.64,8.11119443]
[1735073935464,2.5706,194.66,194.62,2.5709]
[1735073935665,2.5706,194.66,194.63,8.11119443]
[1735073938970,3.0565,194.71,194.63,8.11119443]
[1735073939374,8.11119443,194.7,194.63,8.11119443]
[1735073939672,2.5705,194.66,194.63,8.11119443]
[1735073940674,2.5705,194.66,194.62,2.5709]
[1735073940873,2.5705,194.66,194.61,11.61119443]
[1735073941168,8.11119443,194.68,194.61,11.61119443]
[1735073941372,8.11119443,194.66,194.57,5.0991]
[1735073941672,8.11119443,194.66,194.57,13.21029443]
[1735073942671,2.5711,194.62,194.57,12.28189443]
[1735073943070,2.5711,194.62,194.59,8.11119443]
[1735073943768,8.11119443,194.66,194.59,8.11119443]
[1735073944071,1.6146,194.7,194.63,8.11119443]
[1735073944970,11.16769443,194.71,194.65,8.11119443]
[1735073945367,2.5701,194.69,194.65,8.11119443]
[1735073946170,2.5701,194.69,194.65,10.68169443]
[1735073950171,2.5702,194.68,194.65,10.68169443]
[1735073952772,2.5702,194.68,194.64,2.5707]
[1735073955673,8.11119443,194.71,194.61,10.68219443]
[1735073955877,8.11119443,194.69,194.61,11.61119443]
[1735073956476,8.11119443,194.71,194.61,11.61119443]
[1735073956673,1.6406,194.75,194.61,11.61119443]
[1735073956875,8.11119443,194.71,194.63,8.11119443]
[1735073957170,2.5704,194.67,194.63,8.11119443]
[1735073958378,2.5705,194.66,194.63,8.11119443]
[1735073960876,2.5705,194.66,194.61,14.18229443]
[1735073961479,2.5705,194.66,194.62,2.571]
[1735073961675,1.6406,194.75,194.62,2.571]
[1735073961876,8.11119443,194.72,194.63,8.11119443]
[1735073963183,2.5704,194.67,194.63,8.11119443]
[1735073965883,2.5702,194.69,194.63,8.11119443]
[1735073966974,2.5702,194.68,194.64,2.5707]
[1735073967987,2.5702,194.68,194.63,10.68199443]
[1735073970087,2.5702,194.68,194.63,8.11119443]
[1735073970290,2.5702,194.68,194.64,2.5707]
[1735073980394,2.5701,194.69,194.64,2.5707]
[1735073985796,8.11119443,194.7,194.63,3.5]
[1735073986298,2.5706,194.66,194.63,3.5]
[1735073986494,8.11119443,194.64,194.58,5.0979]
[1735073986704,8.11119443,194.64,194.58,3.5]
[1735073986903,8.11119443,194.62,194.56,65.43804881]
[1735073987796,2.5712,194.61,194.56,8.11119443]
[1735073988605,2.5712,194.61,194.56,10.68289443]
[1735073989003,2.5712,194.61,194.56,14.18289443]
[1735073989305,2.5707,194.65,194.59,2.5714]
[1735073989703,8.11119443,194.66,194.59,2.5714]
[1735073990407,2.5708,194.64,194.59,2.5714]
[1735073991106,2.5709,194.63,194.58,10.68269443]
[1735073991510,8.11119443,194.64,194.56,3.5]
[1735073991710,8.11119443,194.64,194.57,8.11119443]
[1735073992505,2.5711,194.62,194.57,8.11119443]
[1735073994415,2.5708,194.64,194.59,10.68249443]
[1735073997215,8.11119443,194.64,194.58,3.5]
[1735073997417,8.11119443,194.6,194.52,4.7152]
[1735073997613,8.11119443,194.6,194.52,2.5722]
[1735073997920,8.11119443,194.6,194.52,8.11119443]
[1735073998516,5.0703,194.68,194.54,8.11119443]
[1735073998719,2.5712,194.61,194.56,8.11119443]
[1735074000019,2.5709,194.63,194.58,8.11119443]
[1735074001314,2.571,194.62,194.58,8.11119443]
[1735074001821,8.11119443,194.63,194.56,11.61119443]
[1735074002016,2.5714,194.6,194.56,11.61119443]
[1735074002216,8.11119443,194.63,194.56,11.61119443]
[1735074002618,2.5711,194.61,194.56,11.61119443]
[1735074002816,2.5711,194.61,194.56,14.18289443]
[1735074003418,8.11119443,194.63,194.47,1.5847]
[1735074003618,8.11119443,194.57,194.46,1.5173]
[1735074003821,3.5,194.65,194.44,60.82685438]
[1735074003822,8.11119443,194.55,194.44,57.32685438]
[1735074004120,1.6451,194.56,194.48,8.11119443]
[1735074004317,1.6451,194.56,194.5,8.11119443]
[1735074004513,2.5716,194.57,194.5,2.5726]
[1735074004723,1.6607,194.61,194.52,8.11119443]
[1735074004923,1.6607,194.61,194.54,8.11119443]
[1735074005318,7.0751016,194.63,194.56,8.11119443]
[1735074005617,1.6451,194.64,194.58,8.11119443]
[1735074005816,2.571,194.63,194.58,8.11119443]
[1735074006012,1.6451,194.64,194.58,8.11119443]
[1735074006312,9.75629443,194.64,194.57,8.11119443]
[1735074006519,12.32709443,194.64,194.57,8.11119443]
[1735074006717,4.2159,194.64,194.57,8.11119443]
[1735074007319,4.2159,194.64,194.57,10.68279443]
[1735074007520,2.5712,194.61,194.52,4.7047]
[1735074007726,2.5712,194.61,194.54,8.11119443]
[1735074008022,2.5712,194.61,194.56,8.11119443]
[1735074008320,2.5712,194.61,194.55,2.5719]
[1735074008522,2.5712,194.61,194.54,2.572]
[1735074008725,2.5712,194.61,194.53,12.68842197]
[1735074010521,2.5712,194.61,194.53,15.26052197]
[1735074010721,2.5712,194.61,194.54,3.5]
[1735074011526,2.571,194.63,194.56,2.5718]
[1735074011726,1.6327,194.67,194.56,15.26022197]
[1735074012225,2.5709,194.64,194.56,15.26022197]
[1735074012528,1.6327,194.67,194.56,15.26022197]
[1735074013229,2.5709,194.63,194.56,15.26022197]
[1735074013630,2.5707,194.65,194.58,2.5715]
[1735074014226,2.5708,194.64,194.58,2.5715]
[1735074014422,1.5756,194.68,194.56,12.68842197]
[1735074014627,1.6227,194.7,194.59,12.68842197]
[1735074014824,2.5702,194.68,194.6,3.5]
[1735074015029,2.5702,194.68,194.61,2.5711]
[1735074015531,1.6227,194.7,194.6,3.5]
[1735074015733,1.6227,194.7,194.6,6.0712]
[1735074016430,2.5703,194.67,194.6,6.0712]
[1735074018633,2.5703,194.67,194.6,3.5]
[1735074018827,2.5703,194.67,194.61,2.5711]
[1735074022230,1.5656,194.72,194.6,3.5]
[1735074022431,2.5702,194.69,194.61,1.6285]
[1735074022736,2.5702,194.69,194.62,12.68842197]
[1735074023244,1.5656,194.72,194.62,12.68842197]
[1735074023245,2.57,194.7,194.64,2.5707]
[1735074024128,1.5258,194.76,194.65,12.68842197]
[1735074024334,138.91043882,194.79,194.68,12.68842197]
[1735074024634,2.5693,194.75,194.69,2.5699]
[1735074025838,86.53158911,194.77,194.71,2.5698]
[1735074026334,86.53158911,194.77,194.72,3.5]
[1735074026637,2.5691,194.77,194.72,6.0697]
[1735074027339,138.91043882,194.91,194.74,12.68842197]
[1735074027534,12.68842197,194.88,194.75,1.5451]
[1735074027736,12.68842197,194.85,194.75,1.5451]
[1735074027937,2.5689,194.78,194.72,18.75802197]
[1735074028133,2.5689,194.78,194.73,8.10674008]
[1735074028941,2.5689,194.78,194.73,10.67624008]
[1735074029243,2.5689,194.78,194.75,8.10674008]
[1735074029842,15.22156572,194.91,194.77,8.10674008]
[1735074030036,15.22156572,194.91,194.83,8.10674008]
[1735074030543,2.5676,194.88,194.83,8.10674008]
[1735074030935,3.1154,194.94,194.83,8.10674008]
[1735074030936,8.10674008,194.92,194.83,8.10674008]
[1735074031135,2.5673,194.9,194.85,8.10674008]
[1735074031338,8.10674008,194.92,194.85,8.10674008]
[1735074032045,2.5674,194.9,194.85,8.10674008]
[1735074032243,2.5674,194.9,194.83,12.64967554]
[1735074032444,2.5672,194.92,194.84,2.568]
[1735074032845,15.76507554,194.94,194.82,1.5766]
[1735074034545,2.5675,194.89,194.82,4.1449]
[1735074035544,2.5675,194.89,194.83,15.21787554]
[1735074035843,15.76507554,194.94,194.83,15.21787554]
[1735074036039,2.5673,194.91,194.83,15.21787554]
[1735074036641,2.5676,194.88,194.83,12.64967554]
[1735074037136,2.5676,194.88,194.82,4.1449]
[1735074037137,15.76507554,194.94,194.82,1.5766]
[1735074037342,2.5678,194.86,194.81,3.5]
[1735074038238,2.5677,194.87,194.81,3.5]
[1735074038642,2.5677,194.87,194.82,3.5]
[1735074038838,2.5672,194.91,194.82,3.5]
[1735074039043,15.76507554,194.94,194.82,3.5]
[1735074039643,15.76507554,194.94,194.82,6.0683]
[1735074039945,15.76507554,194.94,194.82,3.5]
[1735074040242,2.5674,194.9,194.84,2.5681]
[1735074040641,15.76507554,194.94,194.82,3.5]
[1735074040642,1.61,194.94,194.86,12.64967554]
[1735074040860,12.64967554,194.97,194.86,12.64967554]
[1735074041148,2.5669,194.93,194.87,2.5677]
[1735074041348,1.5065,194.98,194.86,12.64967554]
[1735074042141,1.6036,195.05,194.89,12.64967554]
[1735074042142,3.5,195.04,194.89,12.64967554]
[1735074042339,12.64967554,195.03,194.9,3.5]
[1735074042541,2.5662,194.99,194.93,2.5668]
[1735074042946,12.64967554,195.03,194.93,2.5668]
[1735074043244,12.64967554,195.03,194.9,5.1378]
[1735074044349,12.64967554,195.03,194.9,3.5]
[1735074044550,2.5671,194.92,194.9,3.5]
[1735074045150,12.64967554,195.03,194.9,3.5]
[1735074045546,3.0377,195.04,194.9,3.5]
[1735074045747,2.5662,194.99,194.94,2.5667]
[1735074045947,3.0377,195.04,194.9,3.5]
[1735074046548,3.0377,195.04,194.91,2.5672]
[1735074047652,2.5666,194.96,194.91,2.5672]
[1735074049654,6.5377,195.04,194.93,2.5669]
[1735074049853,6.5377,195.04,194.92,12.64967554]
[1735074050051,3.0377,195.04,194.92,12.64967554]
[1735074050250,2.566,195.0,194.95,2.5666]
[1735074050848,2.5661,194.99,194.93,12.64967554]
[1735074051045,2.5661,194.99,194.94,2.5668]
[1735074051852,2.566,195.0,194.95,2.5666]
[1735074052553,2.5658,195.02,194.96,2.5664]
[1735074052755,2.5658,195.02,194.96,6.0664]
[1735074053858,2.5658,195.02,194.96,18.71607554]
[1735074055152,2.5658,195.02,194.97,2.5663]
[1735074055353,2.5658,195.02,194.96,16.14967554]
[1735074055563,2.5651,195.07,194.99,12.64967554]
[1735074055756,0.18919,195.1,195.02,15.21527554]
[1735074055954,0.18919,195.1,195.02,18.71527554]
[1735074056257,2.565,195.08,195.02,18.71527554]
[1735074057355,2.5652,195.07,195.02,18.71527554]
[1735074057856,2.5649,195.08,195.03,2.5655]
[1735074058048,0.18919,195.1,195.02,3.5]
[1735074058956,2.5656,195.03,195.02,3.5]
[1735074059255,2.5656,195.03,194.96,12.64967554]
[1735074059256,12.83886554,195.1,194.97,3.5]
[1735074059557,12.83886554,195.1,194.97,6.0664]
[1735074060155,2.5658,195.02,194.98,2.5662]
[1735074061259,2.566,195.0,194.97,3.5]
[1735074061659,12.83886554,195.1,194.97,3.5]
[1735074062055,0.18919,195.1,194.97,3.5]
[1735074062261,2.5661,195.0,194.97,3.5]
[1735074063261,12.64967554,195.06,194.97,3.5]
[1735074063461,4.6675,195.05,194.97,3.5]
[1735074064061,2.5662,194.98,194.97,3.5]
[1735074065764,2.566,195.0,194.97,3.5]
[1735074067563,4.6675,195.05,194.97,3.5]
[1735074067766,3.1283,195.05,194.97,3.5]
[1735074068060,1.617,195.05,194.97,3.5]
[1735074068261,2.5654,195.05,194.99,12.64967554]
[1735074068862,2.5654,195.05,195.0,2.566]
[1735074069162,1.80579,195.1,194.99,12.64967554]
[1735074069163,2.5652,195.06,194.99,12.64967554]
[1735074069755,2.5652,195.06,195.02,12.64967554]
[1735074070253,2.5651,195.07,195.02,15.21537554]
[1735074070455,1.80579,195.1,195.03,3.5]
[1735074070456,0.18919,195.1,195.03,3.5]
[1735074070662,0.18919,195.1,195.05,12.64967554]
[1735074071058,2.75399,195.1,195.05,15.21497554]
[1735074072958,0.18919,195.1,195.03,3.5]
[1735074074567,2.5652,195.07,195.03,3.5]
[1735074074770,2.5652,195.07,195.03,16.14967554]
[1735074075671,2.5652,195.06,195.03,16.14967554]
[1735074075967,0.18919,195.1,195.03,12.64967554]
[1735074077572,2.5646,195.11,195.06,12.64967554]
[1735074078474,3.1174,195.17,195.06,12.64967554]
[1735074078974,2.5646,195.11,195.06,12.64967554]
[1735074080873,15.76707554,195.17,195.06,12.64967554]
[1735074081071,15.76707554,195.17,195.03,16.14967554]
[1735074081274,3.5,195.16,195.03,16.14967554]
[1735074081475,2.565,195.08,195.03,16.14967554]
[1735074082171,2.565,195.08,195.03,18.71517554]
[1735074083179,2.5651,195.07,195.03,16.14967554]
[1735074083473,3.5,195.16,195.03,16.14967554]
[1735074083668,2.5644,195.13,195.03,16.14967554]
[1735074083873,3.5,195.16,195.03,16.14967554]
[1735074084170,2.5652,195.06,195.03,16.14967554]
[1735074084375,3.5,195.16,195.03,16.14967554]
[1735074085370,2.5652,195.07,195.03,18.71517554]
[1735074087165,2.5652,195.07,195.03,16.14967554]
[1735074088769,2.5644,195.13,195.03,18.71527554]
[1735074089075,19.26707554,195.17,195.03,18.71527554]
[1735074089372,19.26707554,195.17,194.91,56.3446049]
[1735074089373,12.64967554,195.07,194.91,56.3446049]
[1735074089572,4.9253,195.06,194.93,12.64967554]
[1735074089772,2.5663,194.98,194.93,15.21657554]
[1735074090372,4.9253,195.06,194.93,12.64967554]
[1735074092270,4.9253,195.06,194.95,2.5665]
[1735074092271,2.566,195.0,194.95,2.5665]
[1735074093368,2.5662,194.99,194.93,12.64967554]
[1735074093570,16.14967554,195.07,194.93,12.64967554]
[1735074094273,2.5656,195.03,194.96,12.64967554]
[1735074095281,2.5656,195.03,194.98,2.5662]
[1735074096472,19.34337554,195.1,194.96,12.64967554]
[1735074096673,15.84337554,195.1,194.96,12.64967554]
[1735074097573,2.5656,195.04,194.98,2.5661]
[1735074097777,2.5656,195.04,194.98,6.0661]
[1735074097976,15.84337554,195.1,194.98,6.0661]
[1735074098169,2.5656,195.04,194.98,6.0661]
[1735074098771,2.5657,195.02,194.98,3.5]
[1735074098972,12.64967554,195.07,194.98,3.5]
[1735074099275,12.64967554,195.07,194.93,12.64967554]
[1735074099468,12.64967554,195.01,194.88,12.64967554]
[1735074099671,12.64967554,195.01,194.88,16.14967554]
[1735074100172,12.64967554,195.04,194.88,16.14967554]
[1735074100871,1.5888,195.03,194.88,16.14967554]
[1735074101188,12.64967554,195.01,194.88,12.64967554]
[1735074101371,1.5481,195.0,194.88,16.14967554]
[1735074101881,2.567,194.93,194.88,16.14967554]
[1735074102176,2.567,194.93,194.85,12.64967554]
[1735074102381,2.5682,194.84,194.8,56.3446049]
[1735074102579,12.64967554,194.86,194.8,56.3446049]
[1735074102779,1.5428,194.88,194.79,12.64967554]
[1735074102979,2.5677,194.88,194.81,2.5685]
[1735074103176,2.5677,194.88,194.8,1.5383]
[1735074103675,1.5036,194.92,194.8,1.5383]
[1735074103881,12.64967554,194.91,194.8,1.5383]
[1735074104381,2.568,194.85,194.8,1.5383]
[1735074104776,12.64967554,194.91,194.8,1.5383]
[1735074104979,2.5681,194.84,194.8,1.5383]
[1735074105972,2.568,194.86,194.8,1.5383]
[1735074106178,12.64967554,194.91,194.8,1.5383]
[1735074106581,12.64967554,194.91,194.8,4.1068]
[1735074106787,3.5,194.91,194.8,1.5383]
[1735074107083,6.5717,194.96,194.82,12.64967554]
[1735074108079,2.5672,194.91,194.85,2.5679]
[1735074108282,6.5717,194.96,194.82,12.64967554]
[1735074108676,12.64967554,194.94,194.82,12.64967554]
[1735074109279,12.64967554,194.91,194.8,3.0902]
[1735074109484,3.5,194.9,194.8,3.0902]
[1735074109987,12.64967554,194.88,194.79,1.6376]
[1735074110599,2.5684,194.82,194.79,1.6376]
[1735074110789,12.64967554,194.88,194.79,1.6376]
[1735074110985,12.64967554,194.88,194.74,14.28607554]
[1735074111190,12.64967554,194.88,194.74,15.90847554]
[1735074111791,2.5685,194.82,194.76,2.5691]
[1735074112198,3.5,194.87,194.74,15.90847554]
[1735074112497,5.0908,194.9,194.77,12.64967554]
[1735074113200,2.5677,194.88,194.82,2.5682]
[1735074114203,2.568,194.85,194.8,2.5685]
[1735074114497,12.64967554,194.89,194.79,1.6076]
[1735074115401,2.5681,194.84,194.79,4.1763]
[1735074116802,2.5681,194.84,194.79,1.6076]
[1735074119495,2.5681,194.84,194.78,2.5689]
[1735074120400,12.64967554,194.89,194.75,12.64967554]
[1735074120600,2.5678,194.86,194.81,2.5684]
[1735074120800,1.5908,194.9,194.78,12.64967554]
[1735074121000,2.5677,194.88,194.82,2.5683]
[1735074121306,1.5908,194.9,194.79,1.5501]
[1735074121604,2.568,194.85,194.8,2.5686]
[1735074122299,1.5908,194.9,194.78,12.64967554]
[1735074122500,16.14967554,194.92,194.78,12.64967554]
[1735074123006,12.64967554,194.92,194.78,12.64967554]
[1735074123203,2.5675,194.89,194.83,2.5681]
[1735074124007,1.5614,194.95,194.84,12.64967554]
[1735074124403,1.5614,194.95,194.85,3.0804]
[1735074124601,2.5668,194.94,194.89,2.5673]
[1735074125807,2.5665,194.96,194.9,2.5672]
[1735074127709,2.5663,194.98,194.87,12.64967554]
[1735074127898,2.5663,194.98,194.9,12.64967554]
[1735074128707,12.64967554,195.04,194.9,12.64967554]
[1735074129599,12.64967554,195.07,194.96,2.5665]
[1735074129808,12.64967554,195.07,194.95,3.5]
[1735074130110,12.64967554,195.07,194.96,12.64967554]
[1735074130311,2.5654,195.05,195.0,2.566]
[1735074130611,2.5654,195.05,194.96,12.64967554]
[1735074131511,2.5654,195.05,194.99,2.5661]
[1735074132706,2.5653,195.06,194.96,12.64967554]
[1735074132911,12.64967554,195.07,194.96,12.64967554]
[1735074133613,2.5654,195.05,194.99,2.566]
[1735074135112,17.31887554,195.09,194.96,12.64967554]
[1735074135312,12.64967554,195.09,194.96,12.64967554]
[1735074136014,2.5649,195.09,195.02,2.5656]
[1735074137016,2.5639,195.16,195.09,2.5647]
[1735074137213,2.5639,195.16,195.09,6.0647]
[1735074138312,14.47664234,195.21,195.09,6.0647]
[1735074138716,0.20357,195.19,195.09,6.0647]
[1735074138913,2.5639,195.16,195.09,6.0647]
[1735074139912,12.64967554,195.18,195.09,3.5]
[1735074140216,12.64967554,195.16,195.05,3.48]
[1735074140415,2.5647,195.1,195.05,3.48]
[1735074140721,12.64967554,195.16,195.04,3.48]
[1735074141717,2.5647,195.1,195.04,3.48]
[1735074141915,12.64967554,195.13,195.04,3.48]
[1735074142127,3.1919,195.12,195.04,3.48]
[1735074142619,4.187,195.12,195.05,2.5653]
[1735074143012,1.6226,195.12,195.05,2.5653]
[1735074143515,1.6226,195.12,195.04,3.48]
[1735074144416,2.5647,195.1,195.04,3.48]
[1735074145812,2.5647,195.1,195.03,15.21517554]
[1735074146021,2.5647,195.1,195.03,18.69517554]
[1735074146414,1.6226,195.12,195.03,16.12967554]
[1735074146620,14.27227554,195.12,195.03,3.48]
[1735074147015,2.5653,195.05,195.0,12.64967554]
[1735074147218,12.64967554,195.09,194.98,1.6371]
[1735074147424,1.6417,195.08,194.97,16.12967554]
[1735074147721,1.6417,195.08,194.97,3.48]
[1735074147917,1.586,195.07,194.97,3.48]
[1735074148419,2.5659,195.01,194.97,3.48]
[1735074149117,2.566,195.0,194.97,3.48]
[1735074149825,2.566,195.0,194.94,18.69647554]
[1735074150119,2.566,195.0,194.94,12.64967554]
[1735074150313,12.64967554,195.06,194.94,12.64967554]
[1735074151421,17.71567554,195.07,194.94,15.21637554]
[1735074151818,2.5659,195.01,194.94,15.21637554]
[1735074152318,2.5659,195.01,194.95,2.5666]
[1735074153218,2.5659,195.01,194.94,12.64967554]
[1735074153414,14.29137554,195.08,194.97,12.64967554]
[1735074153621,2.5656,195.04,194.97,12.64967554]
[1735074154524,2.5656,195.04,194.98,2.5662]
[1735074160223,12.64967554,195.08,194.91,4.7314]
[1735074160425,12.64967554,195.08,194.93,12.64967554]
[1735074160624,12.64967554,195.05,194.93,12.64967554]
[1735074160829,1.6538,195.04,194.93,12.64967554]
[1735074162122,1.6538,195.04,194.95,2.5665]
[1735074162324,1.6538,195.04,194.96,12.64967554]
[1735074162824,2.5657,195.03,194.97,2.5664]
[1735074164126,2.5658,195.02,194.97,2.5664]
[1735074167126,2.5657,195.02,194.97,2.5664]
[1735074167332,2.5657,195.02,194.98,2.5662]
[1735074167818,12.64967554,195.09,194.96,12.64967554]
[1735074168024,2.5654,195.05,194.96,12.64967554]
[1735074168426,2.5654,195.05,195.0,2.5659]
[1735074171832,2.5655,195.04,195.0,2.5659]
[1735074174636,12.64967554,195.09,194.98,3.48]
[1735074175237,12.64967554,195.09,194.96,12.64967554]
[1735074175428,2.5661,195.0,194.96,12.64967554]
[1735074177131,2.5661,195.0,194.96,15.21617554]
[1735074177332,2.5658,195.02,194.96,12.64967554]
[1735074177534,12.64967554,195.09,194.96,12.64967554]
[1735074178431,2.5659,195.01,194.97,2.5664]
[1735074179637,2.5659,195.01,194.96,15.21617554]
[1735074180338,12.64967554,195.09,194.96,12.64967554]
[1735074180637,12.64967554,195.06,194.93,12.64967554]
[1735074180836,12.64967554,195.06,194.94,3.48]
[1735074181338,16.14967554,195.06,194.93,15.21657554]
[1735074181934,2.5657,195.03,194.93,15.21657554]
[1735074182140,16.14967554,195.06,194.93,15.21657554]
[1735074182635,2.5663,194.98,194.94,2.5668]
[1735074186139,2.5663,194.98,194.95,8.0879387]
[1735074187741,8.0879387,195.03,194.95,8.0879387]
[1735074187944,2.5661,195.0,194.97,8.0879387]
[1735074188145,28.20576912,195.08,194.97,8.0879387]
[1735074188341,8.0879387,195.05,194.97,8.0879387]
[1735074188844,2.5658,195.02,194.97,10.6542387]
[1735074189046,8.0879387,195.05,194.97,10.6542387]
[1735074189248,8.0879387,195.05,194.97,8.0879387]
[1735074189449,8.0879387,195.01,194.92,3.5]
[1735074189843,8.0879387,194.99,194.93,8.0879387]
[1735074191438,2.5665,194.97,194.93,8.0879387]
[1735074192150,2.5665,194.97,194.92,2.567]
[1735074192849,2.566,195.0,194.95,2.5666]
[1735074193248,1.5697,195.03,194.95,2.5666]
[1735074193452,2.5661,194.99,194.94,12.63913168]
[1735074193649,2.5661,194.99,194.94,2.5667]
[1735074195242,2.5661,194.99,194.91,8.2314]
[1735074195450,2.5661,194.99,194.95,2.5666]
[1735074196353,1.5697,195.03,194.95,2.5666]
[1735074197452,2.5661,195.0,194.95,2.5666]
[1735074198547,2.5661,194.99,194.95,2.5666]
[1735074200763,1.5697,195.03,194.93,12.63913168]
[1735074200960,2.566,195.01,194.96,2.5665]
[1735074202456,2.566,195.0,194.96,2.5665]
[1735074206360,1.5697,195.03,194.94,3.48]
[1735074206564,2.5663,194.98,194.94,3.48]
[1735074208265,2.5664,194.97,194.94,3.48]
[1735074211170,2.5663,194.98,194.94,3.48]
[1735074211367,3.2347,195.03,194.94,3.48]
[1735074212062,28.20576912,195.06,194.94,3.48]
[1735074212263,8.08645154,195.04,194.97,8.08645154]
[1735074212663,8.08645154,195.04,194.97,10.65285154]
[1735074213363,2.5659,195.01,194.97,10.65285154]
[1735074215861,2.5658,195.02,194.97,8.08645154]
[1735074216766,2.5658,195.02,194.97,10.65265154]
[1735074217070,2.5659,195.01,194.97,10.65265154]
[1735074217871,2.5659,195.01,194.97,8.08645154]
[1735074218071,2.5659,195.01,194.98,2.5662]
[1735074218271,2.5657,195.02,194.98,2.5662]
[1735074220169,3.27269,195.08,194.99,8.08645154]
[1735074220472,0.18649,195.08,195.03,8.08645154]
[1735074220671,0.18649,195.08,195.03,11.56645154]
[1735074220863,0.18649,195.08,195.04,2.5654]
[1735074221774,0.18649,195.08,195.03,11.56645154]
[1735074221972,0.18649,195.08,195.05,2.5653]
[1735074222471,0.18649,195.08,195.07,8.08645154]
[1735074222673,7.1447743,195.16,195.07,8.08645154]
[1735074222875,15.23122584,195.16,195.04,3.1023]
[1735074223070,2.5642,195.14,195.08,2.5648]
[1735074223274,2.5642,195.14,195.09,8.08645154]
[1735074223579,2.5642,195.14,195.09,11.56645154]
[1735074224877,8.08645154,195.18,195.09,11.56645154]
[1735074225078,8.08645154,195.18,195.1,2.5647]
[1735074225578,2.5639,195.16,195.1,2.5647]
[1735074225774,3.1572,195.22,195.09,11.56645154]
[1735074225975,8.6714743,195.25,195.13,10.65065154]
[1735074226175,2.5635,195.19,195.13,10.65065154]
[1735074227569,1.5267,195.25,195.13,8.08645154]
[1735074227771,1.5267,195.25,195.15,8.08645154]
[1735074227978,8.08645154,195.22,195.15,8.08645154]
[1735074228576,2.5635,195.19,195.15,8.08645154]
[1735074228778,8.08645154,195.22,195.15,8.08645154]
[1735074229278,8.08645154,195.22,195.15,11.56645154]
[1735074230082,8.08645154,195.22,195.15,14.13045154]
[1735074230083,2.5633,195.21,195.15,14.13045154]
[1735074230377,8.08645154,195.22,195.15,11.56645154]
[1735074230579,2.5636,195.18,195.15,11.56645154]
[1735074230781,8.08645154,195.18,195.11,8.08645154]
[1735074230978,8.08645154,195.18,195.11,3.48]
[1735074231177,8.08645154,195.16,195.11,3.48]
[1735074231377,8.08645154,195.16,195.09,8.08645154]
[1735074232278,2.5645,195.12,195.09,8.08645154]
[1735074232583,2.5645,195.12,195.07,11.56645154]
[1735074232984,2.5646,195.11,195.07,11.56645154]
[1735074234084,2.5644,195.12,195.09,8.08645154]
[1735074234783,3.48,195.22,195.09,8.08645154]
[1735074234986,2.5642,195.14,195.09,8.08645154]
[1735074235484,8.08645154,195.16,195.09,8.08645154]
[1735074235677,2.5645,195.12,195.09,8.08645154]
[1735074236287,2.5645,195.12,195.08,8.08645154]
[1735074238684,8.08645154,195.16,195.1,8.08645154]
[1735074238887,2.5641,195.14,195.1,8.08645154]